bitfinex/quotes_SOLUSD_20260224
["timestamp","ask_amount","ask_price","bid_price","bid_amount"]
[1771942615269,13.09517573,76.364,76.271,1.30484396]
[1771942615576,12.64947749,76.35,76.271,1.30484396]
[1771942615780,12.64947749,76.36,76.271,1.30484396]
[1771942616089,13.09517573,76.364,76.271,1.30484396]
[1771942616285,13.09517573,76.364,76.276,1.30484396]
[1771942616478,12.64947749,76.38,76.276,1.30484396]
[1771942616685,3.69383402,76.377,76.28,1.30484396]
[1771942616883,12.64947749,76.38,76.28,1.30484396]
[1771942617080,12.64947749,76.39,76.28,1.30484396]
[1771942617485,3.69383402,76.387,76.28,1.30484396]
[1771942617887,3.69383402,76.387,76.279,3.69383402]
[1771942617888,12.64947749,76.37,76.285,1.30484396]
[1771942618102,12.64947749,76.36,76.285,1.30484396]
[1771942618291,12.64947749,76.35,76.285,1.30484396]
[1771942618596,3.69383402,76.347,76.287,1.30484396]
[1771942618792,12.64947749,76.33,76.287,1.30484396]
[1771942619095,12.64947749,76.32,76.283,1.30484396]
[1771942619793,12.64947749,76.31,76.281,59.0]
[1771942620512,12.64947749,76.32,76.282,1.30484396]
[1771942620796,3.69383402,76.337,76.283,1.30484396]
[1771942621302,13.09792005,76.348,76.283,1.30484396]
[1771942621678,45.84272017,76.348,76.283,1.30484396]
[1771942621981,13.09792005,76.348,76.283,1.30484396]
[1771942622391,12.64947749,76.37,76.286,1.30484396]
[1771942622582,13.09431837,76.369,76.288,1.30484396]
[1771942622984,12.64947749,76.36,76.288,1.30484396]
[1771942623497,3.69383402,76.367,76.288,1.30484396]
[1771942623498,12.64947749,76.35,76.288,1.30484396]
[1771942623793,3.69383402,76.366,76.288,1.30484396]
[1771942624386,45.8301143,76.369,76.291,1.30484396]
[1771942624589,45.8301143,76.369,76.295,3.69383402]
[1771942624792,12.64947749,76.36,76.296,1.30484396]
[1771942624995,12.64947749,76.35,76.296,1.30484396]
[1771942625301,12.64947749,76.36,76.296,1.30484396]
[1771942625598,13.09431837,76.369,76.296,1.30484396]
[1771942626601,13.09260398,76.379,76.296,1.30484396]
[1771942626776,32.73131966,76.38,76.301,1.30484396]
[1771942626982,12.64947749,76.37,76.301,1.30484396]
[1771942627607,32.73131966,76.38,76.301,1.30484396]
[1771942627782,45.38079715,76.38,76.301,1.30484396]
[1771942627982,12.64947749,76.35,76.301,1.30484396]
[1771942628381,3.69383402,76.367,76.301,1.30484396]
[1771942628583,12.64947749,76.34,76.309,1.30484396]
[1771942629484,13.09774849,76.349,76.31,1.30484396]
[1771942629688,45.84241001,76.349,76.31,1.30484396]
[1771942629904,12.64947749,76.34,76.31,1.30484396]
[1771942630201,12.64947749,76.34,76.308,0.2]
[1771942630984,12.64947749,76.34,76.309,1.30484396]
[1771942631606,45.8481248,76.339,76.309,1.30484396]
[1771942632103,45.8481248,76.339,76.311,1.30484396]
[1771942632104,13.09946423,76.339,76.311,1.30484396]
[1771942632807,12.64947749,76.33,76.308,0.2]
[1771942633012,12.64947749,76.33,76.298,0.2]
[1771942633712,13.10289705,76.319,76.298,0.2]
[1771942636012,13.10118041,76.329,76.299,1.30484396]
[1771942636612,45.85413145,76.329,76.299,1.30484396]
[1771942637115,13.10118041,76.329,76.3,1.30484396]
[1771942637418,12.69739752,76.32,76.298,0.2]
[1771942638015,45.85413145,76.329,76.292,1.30484396]
[1771942638522,45.85413145,76.329,76.293,1.30484396]
[1771942639620,45.85413145,76.329,76.294,1.30484396]
[1771942640492,12.69739752,76.35,76.296,1.30484396]
[1771942640804,13.09448983,76.368,76.296,1.30484396]
[1771942641009,3.69383402,76.365,76.296,1.30484396]
[1771942641416,12.69739752,76.36,76.296,1.30484396]
[1771942641718,3.69383402,76.365,76.296,1.30484396]
[1771942642421,12.69739752,76.36,76.296,1.30484396]
[1771942642817,13.09603321,76.359,76.298,1.30484396]
[1771942644226,12.69739752,76.37,76.298,1.30484396]
[1771942644610,12.69739752,76.37,76.298,0.68624353]
[1771942644611,12.69739752,76.33,76.298,0.68624353]
[1771942644814,13.10118041,76.329,76.299,13.10633166]
[1771942646629,13.10118041,76.329,76.289,0.99554374]
[1771942647129,12.69739752,76.33,76.289,0.99554374]
[1771942648615,12.69739752,76.34,76.291,0.99554374]
[1771942648917,13.09826317,76.346,76.291,0.99554374]
[1771942649330,12.69739752,76.35,76.291,0.99554374]
[1771942649531,12.69739752,76.34,76.291,0.99554374]
[1771942649735,13.09774849,76.349,76.291,0.99554374]
[1771942650237,12.69739752,76.35,76.291,0.99554374]
[1771942650539,12.69739752,76.33,76.291,0.99554374]
[1771942650741,13.10118041,76.329,76.293,0.99554374]
[1771942652934,12.69739752,76.33,76.295,0.99554374]
[1771942653149,13.10118041,76.329,76.295,0.99554374]
[1771942654144,12.69739752,76.32,76.287,0.99554374]
[1771942654636,45.85413145,76.329,76.287,0.99554374]
[1771942654937,12.69739752,76.33,76.289,0.99554374]
[1771942658625,12.69739752,76.33,76.291,0.99554374]
[1771942660544,12.69739752,76.34,76.293,0.99554374]
[1771942660851,12.69739752,76.36,76.293,0.99554374]
[1771942661153,45.82591389,76.376,76.292,216.27431446]
[1771942661154,12.69739752,76.37,76.296,0.99554374]
[1771942661519,13.0876348,76.408,76.296,0.99554374]
[1771942661719,3.69383402,76.387,76.296,0.99554374]
[1771942661915,13.0876348,76.408,76.297,0.99554374]
[1771942661916,45.8067218,76.408,76.297,0.99554374]
[1771942662143,12.69739752,76.37,76.297,0.99554374]
[1771942662349,12.69739752,76.36,76.297,0.99554374]
[1771942662721,13.09603321,76.359,76.302,0.99554374]
[1771942662942,3.69383402,76.391,76.302,0.99554374]
[1771942663143,12.69739752,76.38,76.302,0.99554374]
[1771942663537,12.69739752,76.37,76.302,0.99554374]
[1771942664959,13.09431837,76.369,76.307,0.99554374]
[1771942666028,25.7881162,76.39,76.307,0.99554374]
[1771942666837,58.5149129,76.39,76.307,0.99554374]
[1771942667044,25.7881162,76.39,76.312,0.99554374]
[1771942667552,13.09071868,76.39,76.312,0.99554374]
[1771942667845,25.7881162,76.39,76.312,0.99554374]
[1771942668423,13.09071868,76.39,76.312,0.99554374]
[1771942668826,25.7881162,76.39,76.312,0.99554374]
[1771942669022,13.08797738,76.406,76.317,0.99554374]
[1771942669234,12.69739752,76.39,76.317,0.99554374]
[1771942669529,45.80792083,76.406,76.317,0.99554374]
[1771942670747,12.69739752,76.4,76.317,0.99554374]
[1771942670949,45.80792083,76.406,76.317,0.99554374]
[1771942671148,13.08797738,76.406,76.318,321.02518406]
[1771942671329,0.2,76.44,76.318,321.02518406]
[1771942671330,12.89739752,76.44,76.322,0.99554374]
[1771942671530,32.70714329,76.436,76.323,0.99554374]
[1771942671727,0.2,76.44,76.327,0.99554374]
[1771942671959,0.2,76.44,76.329,0.99554374]
[1771942672127,0.2,76.44,76.334,0.99554374]
[1771942672326,0.2,76.44,76.338,3.69383402]
[1771942672532,13.08232708,76.439,76.34,0.99554374]
[1771942672945,0.2,76.44,76.34,0.99554374]
[1771942673141,0.2,76.44,76.346,320.90744766]
[1771942673335,0.2,76.44,76.35,0.99554374]
[1771942673547,0.2,76.44,76.352,0.99554374]
[1771942673745,0.2,76.44,76.354,0.99554374]
[1771942675452,0.2,76.44,76.36,0.99554374]
[1771942676960,0.2,76.44,76.365,0.99554374]
[1771942677668,0.2,76.44,76.37,0.99554374]
[1771942677960,0.2,76.44,76.375,0.99554374]
[1771942678852,0.2,76.46,76.376,0.99554374]
[1771942679054,0.2,76.46,76.377,0.99554374]
[1771942679432,0.2,76.46,76.379,0.99554374]
[1771942679637,163.2,76.58,76.384,0.99554374]
[1771942679839,12.69739752,76.5,76.384,0.99554374]
[1771942680059,13.07377531,76.489,76.389,0.99554374]
[1771942680267,25.97110046,76.49,76.389,0.99554374]
[1771942680450,13.27370294,76.49,76.389,0.99554374]
[1771942680656,13.27370294,76.49,76.393,0.99554374]
[1771942680657,13.07377531,76.489,76.393,0.99554374]
[1771942680964,13.07377531,76.489,76.394,0.99554374]
[1771942681162,13.07377531,76.489,76.398,0.99554374]
[1771942681371,45.75821359,76.489,76.398,0.99554374]
[1771942681652,12.69739752,76.48,76.403,0.99554374]
[1771942681967,45.75821359,76.489,76.403,0.99554374]
[1771942682256,12.69739752,76.48,76.403,0.99554374]
[1771942682757,3.69383402,76.486,76.403,0.99554374]
[1771942683061,12.69739752,76.48,76.403,0.99554374]
[1771942683639,12.69739752,76.47,76.403,0.99554374]
[1771942684040,12.69739752,76.48,76.408,0.99554374]
[1771942684242,12.69739752,76.46,76.408,0.99554374]
[1771942686259,12.69739752,76.45,76.409,13.08746351]
[1771942686438,45.77616761,76.459,76.409,13.08746351]
[1771942686639,45.77616761,76.459,76.405,13.08811933]
[1771942686858,12.69739752,76.45,76.405,13.08811933]
[1771942687171,12.69739752,76.44,76.395,13.0898619]
[1771942687351,12.69739752,76.42,76.362,0.99554374]
[1771942687534,268.11755317,76.459,76.361,45.83491572]
[1771942687535,12.69739752,76.41,76.361,45.83491572]
[1771942687740,12.69739752,76.4,76.361,45.83491572]
[1771942687964,12.69739752,76.4,76.361,13.0956902]
[1771942688166,13.08917655,76.399,76.361,13.0956902]
[1771942688663,13.08917655,76.399,76.36,58.94]
[1771942688664,12.69739752,76.39,76.36,58.94]
[1771942689358,13.08917655,76.399,76.36,105.77099395]
[1771942689549,13.08917655,76.399,76.361,0.99554374]
[1771942690560,13.08746351,76.409,76.363,0.99554374]
[1771942690939,12.69739752,76.4,76.363,0.99554374]
[1771942691141,12.69739752,76.39,76.36,58.94]
[1771942691336,12.69739752,76.39,76.361,13.0956902]
[1771942691538,13.08746351,76.409,76.362,0.99554374]
[1771942691856,12.69739752,76.41,76.362,0.99554374]
[1771942692454,13.08746351,76.409,76.364,0.99554374]
[1771942694161,12.69739752,76.4,76.362,0.99554374]
[1771942695356,13.08917655,76.399,76.364,0.99554374]
[1771942696366,45.8061223,76.409,76.366,0.99554374]
[1771942697154,13.08746351,76.409,76.366,0.99554374]
[1771942698147,12.67084989,76.4,76.365,13.09500425]
[1771942698350,12.67084989,76.4,76.356,32.740963]
[1771942698351,12.67084989,76.39,76.337,0.99554374]
[1771942700872,13.09089004,76.389,76.339,0.99554374]
[1771942701943,13.06861532,76.389,76.34,0.99554374]
[1771942703871,13.0876348,76.408,76.342,0.99554374]
[1771942705080,45.8067218,76.408,76.342,0.99554374]
[1771942705875,45.8067218,76.408,76.344,0.99554374]
[1771942707250,12.67084989,76.4,76.344,0.99554374]
[1771942707455,12.67084989,76.39,76.344,0.99554374]
[1771942708473,13.09089004,76.389,76.345,45.84452157]
[1771942708676,13.09089004,76.389,76.346,0.99554374]
[1771942710665,13.09089004,76.389,76.348,0.99554374]
[1771942711270,12.67084989,76.38,76.348,0.99554374]
[1771942713367,12.67084989,76.38,76.349,46.83766347]
[1771942714363,12.67084989,76.37,76.349,13.09774849]
[1771942714987,12.67084989,76.38,76.35,0.99554374]
[1771942715984,13.09260398,76.379,76.351,13.0974054]
[1771942716876,32.7284311,76.387,76.351,13.0974054]
[1771942716877,32.72488139,76.395,76.352,0.99554374]
[1771942717065,12.67084989,76.39,76.352,0.99554374]
[1771942718278,12.67084989,76.38,76.345,0.99554374]
[1771942719994,12.67084989,76.38,76.344,0.99554374]
[1771942720175,12.67084989,76.37,76.344,0.99554374]
[1771942720379,13.09431837,76.369,76.341,13.09910581]
[1771942720576,13.09431837,76.369,76.342,0.99554374]
[1771942721574,13.09431837,76.369,76.343,13.09877788]
[1771942723373,12.67084989,76.38,76.343,13.09877788]
[1771942723892,65.45445024,76.389,76.344,0.99554374]
[1771942724282,12.67084989,76.38,76.344,0.99554374]
[1771942726284,13.09260398,76.379,76.346,0.99554374]
[1771942728299,32.72880782,76.386,76.348,0.99554374]
[1771942729482,12.67084989,76.38,76.348,0.99554374]
[1771942730206,32.72880782,76.386,76.348,0.99554374]
[1771942730725,12.67084989,76.38,76.349,13.09774849]
[1771942731410,5.07260185,76.38,76.348,0.99554374]
[1771942731587,5.07260185,76.39,76.348,14.0933913]
[1771942731785,5.07260185,76.38,76.348,13.09784756]
[1771942731984,5.07260185,76.38,76.349,0.99554374]
[1771942733887,13.09260398,76.379,76.35,13.09757694]
[1771942735312,5.07260185,76.37,76.32,0.99554374]
[1771942735511,5.07260185,76.33,76.305,0.99554374]
[1771942736112,13.10118041,76.329,76.305,0.99554374]
[1771942736289,13.10118041,76.329,76.306,13.10512934]
[1771942736496,18.1737207,76.33,76.306,14.10067308]
[1771942737001,18.1737207,76.33,76.307,0.99554374]
[1771942737190,25.79851118,76.33,76.307,0.99554374]
[1771942738696,12.69739233,76.34,76.309,0.99554374]
[1771942739108,12.69739233,76.33,76.309,0.99554374]
[1771942740388,12.69739233,76.34,76.309,0.99554374]
[1771942740714,12.69739233,76.33,76.309,0.99554374]
[1771942741617,13.10118041,76.329,76.298,0.99554374]
[1771942743241,45.85413145,76.329,76.298,0.99554374]
[1771942744498,45.85413145,76.329,76.3,0.99554374]
[1771942744693,12.69739233,76.33,76.3,0.99554374]
[1771942745308,3.69383402,76.366,76.281,0.99554374]
[1771942745496,12.69739233,76.32,76.281,0.99554374]
[1771942745692,12.69739233,76.31,76.281,0.99554374]
[1771942746712,12.69739233,76.32,76.281,0.99554374]
[1771942747404,12.69739233,76.31,76.281,0.99554374]
[1771942748999,12.69739233,76.31,76.282,0.99554374]
[1771942749198,45.86013967,76.319,76.282,0.99554374]
[1771942749718,12.69739233,76.31,76.282,0.99554374]
[1771942751819,12.69739233,76.32,76.284,0.99554374]
[1771942752015,12.69739233,76.34,76.284,0.99554374]
[1771942754712,13.09946423,76.339,76.286,0.99554374]
[1771942754916,12.69739233,76.32,76.286,0.99554374]
[1771942755120,45.8481248,76.339,76.286,0.99554374]
[1771942755322,12.69739233,76.33,76.286,0.99554374]
[1771942755823,12.69739233,76.31,76.286,0.99554374]
[1771942756006,12.7040854,76.31,76.286,0.99554374]
[1771942756207,12.7040854,76.32,76.286,0.99554374]
[1771942756912,13.10289705,76.319,76.286,0.99554374]
[1771942757113,12.7040854,76.31,76.285,13.10873697]
[1771942757616,12.7040854,76.31,76.28,1.09554374]
[1771942758105,45.86013967,76.319,76.281,14.1049681]
[1771942758306,12.7040854,76.31,76.282,0.99554374]
[1771942759206,5.08233458,76.31,76.282,0.99554374]
[1771942761032,5.08233458,76.3,76.282,0.99554374]
[1771942761332,13.10461413,76.309,76.282,14.10478514]
[1771942761620,13.10461413,76.309,76.283,0.99554374]
[1771942764128,13.10461413,76.309,76.285,0.99554374]
[1771942769031,13.10461413,76.309,76.28,0.1]
[1771942769032,5.08233458,76.29,76.28,0.1]
[1771942769729,5.08233458,76.3,76.28,0.1]
[1771942770328,5.08233458,76.29,76.28,0.1]
[1771942771433,13.10775076,76.291,76.28,0.1]
[1771942771434,13.10714473,76.295,76.28,1.09554374]
[1771942771836,3.69383402,76.307,76.28,1.09554374]
[1771942772036,5.08233458,76.31,76.28,1.09554374]
[1771942772529,5.08233458,76.3,76.28,1.09554374]
[1771942772733,45.86314437,76.314,76.28,1.09554374]
[1771942772924,5.08233458,76.31,76.28,1.09554374]
[1771942773315,13.10461413,76.309,76.28,1.09554374]
[1771942773637,5.08233458,76.3,76.28,1.09554374]
[1771942774042,5.08233458,76.29,76.28,0.1]
[1771942774230,5.08233458,76.29,76.273,0.99554374]
[1771942774435,5.08233458,76.28,76.261,0.99554374]
[1771942774948,5.08233458,76.29,76.262,0.99554374]
[1771942775436,13.10804965,76.289,76.262,0.99554374]
[1771942778337,45.87817378,76.289,76.26,0.1]
[1771942778524,5.08233458,76.27,76.26,0.1]
[1771942779243,5.08233458,76.28,76.26,0.1]
[1771942779538,5.08233458,76.28,76.262,0.99554374]
[1771942779724,13.10633166,76.299,76.263,13.11251852]
[1771942779924,32.76628265,76.298,76.264,0.99554374]
[1771942780448,5.08233458,76.28,76.26,0.1]
[1771942780629,5.08233458,76.29,76.262,0.99554374]
[1771942780824,32.76628265,76.298,76.262,0.99554374]
[1771942781029,13.10633166,76.299,76.262,0.99554374]
[1771942781239,45.87216083,76.299,76.262,0.99554374]
[1771942781442,5.08233458,76.29,76.262,0.99554374]
[1771942781622,45.87216083,76.299,76.262,0.99554374]
[1771942782028,5.08233458,76.29,76.262,0.99554374]
[1771942782232,5.08233458,76.28,76.262,0.99554374]
[1771942782736,5.08233458,76.29,76.263,13.11251852]
[1771942782941,5.08233458,76.29,76.264,0.99554374]
[1771942783732,45.87216083,76.299,76.264,0.99554374]
[1771942784134,45.87216083,76.299,76.266,0.99554374]
[1771942786453,45.87216083,76.299,76.268,0.99554374]
[1771942786641,5.08233458,76.28,76.26,0.99554374]
[1771942786953,45.87216083,76.299,76.26,0.99554374]
[1771942787749,5.08233458,76.29,76.26,0.99554374]
[1771942788350,5.08233458,76.28,76.26,0.99554374]
[1771942790032,45.87817378,76.289,76.26,0.99554374]
[1771942790552,5.08233458,76.28,76.26,0.99554374]
[1771942791428,5.08233458,76.28,76.254,0.99554374]
[1771942791947,5.08233458,76.28,76.247,0.99554374]
[1771942792149,5.08233458,76.27,76.247,0.99554374]
[1771942792651,13.11148697,76.269,76.247,0.99554374]
[1771942793852,13.11148697,76.269,76.23,5.18233458]
[1771942793853,52.40221194,76.333,76.249,0.99554374]
[1771942794048,5.08233458,76.29,76.251,0.99554374]
[1771942794735,13.10804965,76.289,76.253,0.99554374]
[1771942796159,5.08233458,76.28,76.253,0.99554374]
[1771942796944,13.10976808,76.279,76.253,0.99554374]
[1771942797254,5.08233458,76.27,76.248,0.99554374]
[1771942799337,13.11148697,76.269,76.248,0.99554374]
[1771942800259,5.08233458,76.28,76.249,0.99554374]
[1771942800441,13.1083933,76.287,76.249,0.99554374]
[1771942800760,5.08233458,76.28,76.249,0.99554374]
[1771942800935,5.08233458,76.27,76.249,0.99554374]
[1771942801337,13.11148697,76.269,76.249,0.99554374]
[1771942801647,13.11148697,76.269,76.243,0.99554374]
[1771942801648,5.08233458,76.26,76.243,0.99554374]
[1771942801846,13.11148697,76.269,76.243,0.99554374]
[1771942802236,5.08233458,76.26,76.239,0.235126]
[1771942802564,13.11148697,76.269,76.24,0.99554374]
[1771942803134,5.08233458,76.28,76.24,0.99554374]
[1771942803333,13.11015842,76.277,76.243,0.99554374]
[1771942804551,13.10976808,76.279,76.243,0.99554374]
[1771942804963,13.10907547,76.284,76.251,0.99554374]
[1771942805444,13.10824149,76.288,76.252,45.90043539]
[1771942805792,5.08233458,76.29,76.253,0.99554374]
[1771942806058,3.69383402,76.297,76.253,0.99554374]
[1771942806258,13.10526789,76.306,76.261,0.99554374]
[1771942806478,3.69383402,76.314,76.27,5.08233458]
[1771942806651,5.08233458,76.33,76.281,0.99554374]
[1771942806972,5.08233458,76.32,76.281,0.99554374]
[1771942807168,5.08233458,76.33,76.291,0.99554374]
[1771942807573,13.10118041,76.329,76.292,13.10753421]
[1771942807762,13.10118041,76.329,76.293,0.99554374]
[1771942808455,65.48559537,76.353,76.292,13.10753421]
[1771942808456,45.83611623,76.359,76.321,0.99554374]
[1771942808663,5.08233458,76.34,76.3,5.08233458]
[1771942809054,45.83611623,76.359,76.292,45.87636973]
[1771942809055,0.76071857,76.358,76.292,45.87636973]
[1771942809262,0.76071857,76.349,76.31,5.08233458]
[1771942809475,0.76071857,76.357,76.32,5.08233458]
[1771942809778,13.09654775,76.356,76.321,13.10255368]
[1771942810070,0.76024081,76.387,76.34,5.08233458]
[1771942810256,13.09260398,76.379,76.35,5.08233458]
[1771942810574,13.09163141,76.385,76.35,5.08233458]
[1771942810755,13.09163141,76.385,76.361,0.85496997]
[1771942811151,13.09026745,76.393,76.362,0.85496997]
[1771942811351,0.86558735,76.397,76.361,0.85496997]
[1771942811767,13.08969055,76.396,76.363,0.85496997]
[1771942812370,13.08969055,76.396,76.37,5.08233458]
[1771942812581,13.08969055,76.396,76.371,0.85496997]
[1771942813358,0.86558735,76.395,76.363,0.85496997]
[1771942813873,13.09003324,76.394,76.365,0.85496997]
[1771942814177,13.09003324,76.394,76.37,12.67481366]
[1771942814375,13.09003324,76.394,76.365,0.85496997]
[1771942815069,13.09003324,76.394,76.371,0.85496997]
[1771942816358,13.9547639,76.399,76.378,0.33953773]
[1771942816682,0.86558735,76.398,76.378,0.33953773]
[1771942816977,13.08917655,76.399,76.378,0.33953773]
[1771942817175,13.08797738,76.406,76.381,0.85496997]
[1771942817474,12.67481366,76.43,76.401,0.85496997]
[1771942817679,3.69383402,76.427,76.391,0.85496997]
[1771942818672,13.95013972,76.426,76.391,0.85496997]
[1771942819074,46.66152066,76.426,76.392,13.09037595]
[1771942819280,13.08232708,76.439,76.401,0.85496997]
[1771942819489,13.08232708,76.439,76.411,0.85496997]
[1771942819978,13.08232708,76.439,76.392,45.81631583]
[1771942819979,13.07993146,76.453,76.431,0.85496997]
[1771942820182,13.07719468,76.469,76.431,0.85496997]
[1771942820379,0.86558735,76.459,76.42,12.67481366]
[1771942820767,0.86558735,76.457,76.42,12.67481366]
[1771942821170,0.86558735,76.457,76.421,13.08540846]
[1771942821871,12.65473166,76.45,76.415,13.08627687]
[1771942822075,0.86558735,76.449,76.415,13.08627687]
[1771942822468,0.86558735,76.449,76.41,12.65473166]
[1771942822890,3.69383402,76.464,76.405,13.08799866]
[1771942822891,0.86558735,76.439,76.405,13.08799866]
[1771942823084,0.86558735,76.447,76.411,0.85496997]
[1771942823287,0.86558735,76.447,76.421,0.85496997]
[1771942823596,0.86558735,76.447,76.41,12.65473166]
[1771942823969,0.86558735,76.447,76.41,13.50970163]
[1771942824170,0.86558735,76.447,76.411,0.85496997]
[1771942824387,52.31057819,76.467,76.405,13.08799866]
[1771942824388,0.85260901,76.457,76.406,0.87647257]
[1771942824592,0.85260901,76.457,76.421,0.87647257]
[1771942825291,0.82611324,76.455,76.43,12.65473166]
[1771942825491,0.82611324,76.455,76.423,0.87634092]
[1771942826475,0.82611324,76.449,76.417,13.96232083]
[1771942826798,0.82611324,76.449,76.42,12.65473166]
[1771942827701,0.82611324,76.447,76.41,12.65473166]
[1771942827999,0.82611324,76.439,76.401,0.87634092]
[1771942828498,0.82611324,76.429,76.391,0.87634092]
[1771942829498,0.82611324,76.419,76.383,0.87634092]
[1771942829688,0.82611324,76.417,76.384,13.09174696]
[1771942830683,0.82611324,76.417,76.385,0.87634092]
[1771942831198,13.08592216,76.418,76.391,0.87634092]
[1771942831901,0.82611324,76.417,76.38,12.65473166]
[1771942832197,0.82611324,76.417,76.371,59.0]
[1771942832198,0.82611324,76.409,76.371,59.87634092]
[1771942832378,0.82611324,76.399,76.372,0.87634092]
[1771942832579,0.82611324,76.442,76.391,0.87634092]
[1771942832877,3.69383402,76.447,76.42,12.65473166]
[1771942833078,0.82611324,76.459,76.421,0.87634092]
[1771942833278,13.07907609,76.458,76.421,0.87634092]
[1771942833578,0.82611324,76.449,76.411,0.87634092]
[1771942833775,0.82611324,76.447,76.412,13.08694969]
[1771942834280,13.0802323,76.452,76.421,0.87634092]
[1771942835279,0.82611324,76.451,76.421,0.87634092]
[1771942835896,13.08044473,76.45,76.423,0.87634092]
[1771942837282,13.90655797,76.45,76.423,0.87634092]
[1771942838499,0.82611324,76.458,76.425,0.87634092]
[1771942838703,0.82611324,76.458,76.431,0.87634092]
[1771942838906,0.82611324,76.468,76.441,0.87634092]
[1771942839106,13.07719468,76.469,76.441,0.87634092]
[1771942839406,0.2,76.47,76.451,0.87634092]
[1771942840504,0.82611324,76.468,76.439,0.87634092]
[1771942840712,0.82611324,76.468,76.44,11.75090372]
[1771942840887,0.82611324,76.459,76.425,13.08472358]
[1771942841092,0.82611324,76.459,76.43,11.75090372]
[1771942841987,0.82611324,76.459,76.42,13.08541721]
[1771942842187,0.82611324,76.459,76.42,24.83632093]
[1771942842713,0.82611324,76.457,76.42,24.83632093]
[1771942842913,0.82611324,76.457,76.42,25.71266185]
[1771942843095,45.77676632,76.458,76.412,13.08694969]
[1771942843096,0.82611324,76.449,76.412,13.08694969]
[1771942843409,13.07725279,76.469,76.44,11.75090372]
[1771942843905,13.07725279,76.469,76.436,0.87634092]
[1771942844708,13.07725279,76.469,76.437,13.08266938]
[1771942845111,13.07725279,76.469,76.438,0.87634092]
[1771942845692,0.82611324,76.468,76.438,0.87634092]
[1771942847099,0.82611324,76.459,76.421,0.87634092]
[1771942847802,0.82611324,76.449,76.41,24.83819595]
[1771942848012,0.82611324,76.449,76.411,0.87634092]
[1771942848698,0.82611324,76.456,76.421,0.87634092]
[1771942849018,0.82611324,76.456,76.41,45.80552282]
[1771942849019,3.69383402,76.466,76.44,11.75090372]
[1771942849225,0.82611324,76.469,76.441,0.87634092]
[1771942849813,13.90330792,76.469,76.441,0.87634092]
[1771942850011,0.82611324,76.459,76.423,0.87634092]
[1771942851216,0.82611324,76.459,76.422,45.79833031]
[1771942851217,0.82611324,76.457,76.425,0.87634092]
[1771942852008,0.82611324,76.449,76.424,13.08489479]
[1771942853012,0.82611324,76.449,76.42,24.83636282]
[1771942853327,45.77676632,76.458,76.42,24.83636282]
[1771942853328,0.82611324,76.447,76.42,24.83636282]
[1771942853509,0.82611324,76.447,76.42,25.71270374]
[1771942854217,0.82611324,76.447,76.411,13.08712096]
[1771942854713,0.82611324,76.439,76.411,13.08712096]
[1771942854918,0.82611324,76.429,76.398,13.08934788]
[1771942855415,0.85612147,76.443,76.41,11.75090372]
[1771942855621,11.75090372,76.42,76.385,0.84798747]
[1771942855803,0.85612147,76.419,76.385,0.84798747]
[1771942857820,0.85612147,76.417,76.384,45.82111436]
[1771942859816,13.08626465,76.416,76.384,45.82111436]
[1771942859999,0.85612147,76.415,76.384,45.82111436]
[1771942860418,0.85612147,76.415,76.385,0.84798747]
[1771942860721,3.69383402,76.437,76.384,45.82111436]
[1771942860722,0.85612147,76.445,76.411,0.84798747]
[1771942860900,0.85612147,76.454,76.42,11.75090372]
[1771942861103,45.77197707,76.466,76.413,0.84798747]
[1771942861104,0.85612147,76.449,76.413,0.84798747]
[1771942861403,0.85612147,76.449,76.42,11.75090372]
[1771942861603,8.60702519,76.45,76.42,12.59889119]
[1771942861803,8.60702519,76.45,76.42,0.84798747]
[1771942862418,11.75090372,76.44,76.411,13.08712096]
[1771942862603,11.75090372,76.44,76.4,11.75090372]
[1771942863017,11.75090372,76.43,76.4,12.59889119]
[1771942863415,11.75090372,76.43,76.401,0.84798747]
[1771942863623,0.85612147,76.439,76.401,0.84798747]
[1771942864620,0.85612147,76.429,76.386,0.84798747]
[1771942864916,0.85612147,76.429,76.4,11.75090372]
[1771942865124,0.85612147,76.429,76.401,0.84798747]
[1771942865525,0.85612147,76.429,76.391,0.84798747]
[1771942865719,0.85612147,76.419,76.391,0.84798747]
[1771942866735,0.85612147,76.399,76.365,0.84798747]
[1771942867036,0.85612147,76.399,76.361,13.0956902]
[1771942867037,0.85612147,76.389,76.361,13.0956902]
[1771942867714,0.85612147,76.379,76.349,13.09771039]
[1771942868221,0.85612147,76.379,76.34,0.84798747]
[1771942868425,11.75090372,76.38,76.351,0.84798747]
[1771942869227,13.09260398,76.379,76.351,13.94524366]
[1771942870226,11.75090372,76.39,76.36,11.75090372]
[1771942870427,13.08969055,76.396,76.361,0.84798747]
[1771942870625,11.75090372,76.39,76.361,0.84798747]
[1771942871619,13.09089004,76.389,76.362,13.94350618]
[1771942872326,13.09089004,76.389,76.363,0.84798747]
[1771942875225,36.41502128,76.404,76.328,102.96664657]
[1771942875226,11.75090372,76.4,76.371,0.84798747]
[1771942875431,11.75090372,76.41,76.371,0.84798747]
[1771942875616,24.8382901,76.41,76.381,0.84798747]
[1771942876635,24.8382901,76.41,76.383,0.84798747]
[1771942876936,24.85276136,76.41,76.383,0.84798747]